bitfinex-derivatives/quotes_BTCF0:USTF0_20241208
["timestamp","ask_amount","ask_price","bid_price","bid_amount"]
[1733670071598,0.100539,99848.0,99839.0,0.10328342]
[1733670071791,0.0555,99848.0,99842.0,0.045041]
[1733670072096,0.0555,99848.0,99840.0,0.01]
[1733670072302,0.0555,99848.0,99846.0,0.045039]
[1733670072590,0.0565,99848.0,99846.0,0.045039]
[1733670073285,0.0555,99848.0,99840.0,0.011]
[1733670073491,0.0555,99848.0,99841.0,0.00312971]
[1733670073693,0.0555,99848.0,99842.0,0.00312971]
[1733670073996,0.0575,99848.0,99843.0,0.00312971]
[1733670074196,0.0575,99848.0,99842.0,0.045041]
[1733670074396,0.0575,99848.0,99843.0,0.10328544]
[1733670074596,0.0575,99848.0,99844.0,0.0031297]
[1733670074788,0.0575,99848.0,99843.0,0.10015574]
[1733670074983,0.0575,99848.0,99842.0,0.045041]
[1733670074984,0.0575,99848.0,99844.0,0.0031297]
[1733670075192,0.0575,99848.0,99843.0,0.10015473]
[1733670075404,0.2807,99847.0,99791.0,0.27895124]
[1733670075611,0.2807,99847.0,99784.0,0.045067]
[1733670075612,0.04506,99801.0,99784.0,0.045067]
[1733670075804,0.7216,99803.0,99784.0,0.045067]
[1733670075805,0.3608,99785.0,99784.0,0.045067]
[1733670075996,0.3608,99785.0,99776.0,0.045071]
[1733670076298,0.3608,99785.0,99784.0,0.1001758]
[1733670076493,0.3608,99785.0,99763.0,0.3608]
[1733670076797,0.3608,99790.0,99778.0,0.04507]
[1733670077000,0.3608,99790.0,99784.0,0.02020619]
[1733670077201,0.001,99785.0,99784.0,0.02020619]
[1733670077590,0.001,99785.0,99784.0,0.06527419]
[1733670077798,0.1058,99800.0,99784.0,0.1655007]
[1733670078294,0.1058,99800.0,99784.0,0.1675007]
[1733670079102,0.0008,99800.0,99784.0,0.1675007]
[1733670079501,0.0008,99800.0,99784.0,0.1725007]
[1733670081005,0.0008,99800.0,99799.0,0.07]
[1733670082097,0.01,99804.0,99799.0,0.1702009]
[1733670082294,0.01,99804.0,99799.0,0.2152619]
[1733670082900,0.001,99800.0,99799.0,0.22461282]
[1733670083303,0.011,99804.0,99801.0,0.04506]
[1733670084000,0.01,99804.0,99802.0,0.14525789]
[1733670084397,0.011,99804.0,99802.0,0.045059]
[1733670084604,0.011,99804.0,99803.0,0.10019789]
[1733670085202,0.011,99804.0,99803.0,0.17019789]
[1733670085704,0.013,99804.0,99803.0,0.17019789]
[1733670086005,0.012,99804.0,99803.0,0.17019789]
[1733670086198,0.014,99804.0,99803.0,0.17019789]
[1733670087599,0.014,99804.0,99803.0,0.17332829]
[1733670092401,0.014,99804.0,99803.0,0.17019789]
[1733670092597,0.014,99804.0,99803.0,0.17332815]
[1733670094305,0.014,99804.0,99803.0,0.19383852]
[1733670094702,0.014,99804.0,99803.0,0.19070826]
[1733670094901,0.014,99804.0,99803.0,0.19383863]
[1733670095101,0.014,99804.0,99803.0,0.23889763]
[1733670095914,0.01,99825.0,99819.0,0.045052]
[1733670096124,0.14482677,99844.0,99831.0,0.045046]
[1733670096315,0.14482677,99844.0,99826.0,0.005]
[1733670096316,0.056,99844.0,99826.0,0.005]
[1733670096510,0.1113,99844.0,99831.0,0.17019688]
[1733670096719,0.0553,99844.0,99843.0,0.045041]
[1733670097205,0.0553,99844.0,99843.0,0.14520376]
[1733670097407,0.0553,99844.0,99843.0,0.21520376]
[1733670097905,0.0553,99844.0,99843.0,0.21833369]
[1733670099017,0.009,99844.0,99843.0,0.21933369]
[1733670099408,0.01,99844.0,99843.0,0.21933369]
[1733670099715,0.01,99844.0,99843.0,0.2193333]
[1733670102715,0.01,99844.0,99843.0,0.22882298]
[1733670103117,0.01,99844.0,99843.0,0.22882283]
[1733670106414,0.01,99844.0,99843.0,0.18378183]
[1733670106716,0.01,99844.0,99843.0,0.22882283]
[1733670107316,0.01,99844.0,99843.0,0.23195231]
[1733670107513,0.01,99844.0,99843.0,0.22882292]
[1733670109337,0.01,99844.0,99840.0,7.992e-05]
[1733670109338,0.045053,99816.0,99813.0,0.01]
[1733670109622,0.3608,99814.0,99799.0,0.3608]
[1733670109822,0.3608,99814.0,99813.0,0.07]
[1733670111515,0.3608,99814.0,99813.0,0.071]
[1733670111914,0.3608,99814.0,99813.0,0.17118684]
[1733670112114,0.44976932,99814.0,99813.0,0.17118684]
[1733670112314,0.3608,99814.0,99813.0,0.17118684]
[1733670113517,0.44976932,99814.0,99813.0,0.17118684]
[1733670113817,0.3608,99814.0,99813.0,0.17118684]
[1733670114515,0.405854,99814.0,99813.0,0.17118684]
[1733670114717,0.405854,99814.0,99813.0,0.17018684]
[1733670114919,0.405854,99814.0,99813.0,0.17118684]
[1733670115116,0.49482332,99814.0,99813.0,0.17118684]
[1733670115313,0.49482332,99814.0,99813.0,0.17018684]
[1733670115515,0.405854,99814.0,99813.0,0.17318684]
[1733670115716,0.405854,99814.0,99813.0,0.17418684]
[1733670115919,0.405854,99814.0,99813.0,0.17118684]
[1733670116423,0.405854,99814.0,99813.0,0.17018684]
[1733670116717,0.405854,99814.0,99813.0,0.17118684]
[1733670117219,0.405854,99814.0,99813.0,0.21624184]
[1733670117220,0.3608,99814.0,99813.0,0.21624184]
[1733670117625,0.3608,99822.0,99813.0,0.57240422]
[1733670117927,0.3608,99822.0,99821.0,0.045051]
[1733670118313,0.3608,99835.0,99829.0,0.045047]
[1733670119119,0.3608,99835.0,99830.0,0.10016828]
[1733670119520,0.3618,99835.0,99830.0,0.10016828]
[1733670120225,0.3618,99835.0,99834.0,0.045045]
[1733670120816,0.3618,99835.0,99834.0,0.21521278]
[1733670121218,0.3608,99835.0,99834.0,0.21521278]
[1733670121416,0.3618,99835.0,99834.0,0.2183426]
[1733670121924,0.3608,99835.0,99834.0,0.2183426]
[1733670122120,0.3608,99835.0,99834.0,0.2223426]
[1733670122626,0.3608,99835.0,99834.0,0.2233426]
[1733670122815,0.3608,99835.0,99834.0,0.2253426]
[1733670124525,0.3608,99835.0,99834.0,0.2243426]
[1733670126331,0.3608,99835.0,99834.0,0.2223426]
[1733670126528,0.3608,99835.0,99834.0,0.2243426]
[1733670127228,0.01,99837.0,99836.0,0.045044]
[1733670127422,0.01,99837.0,99836.0,0.04817382]
[1733670127818,0.01,99837.0,99836.0,0.86281311]
[1733670128023,0.01,99837.0,99836.0,0.56369614]
[1733670128423,0.0586,99858.0,99836.0,0.56469614]
[1733670128626,0.0586,99858.0,99845.0,0.29913993]
[1733670128830,0.0586,99858.0,99846.0,0.00312982]
[1733670129132,0.0586,99858.0,99847.0,0.00312982]
[1733670129335,0.0586,99858.0,99848.0,0.00312982]
[1733670129629,0.0586,99858.0,99841.0,0.3608]
[1733670129630,0.0586,99858.0,99849.0,0.00312982]
[1733670129824,0.3608,99864.0,99863.0,0.045032]
[1733670130134,0.3608,99864.0,99863.0,0.04816182]
[1733670130326,0.3608,99864.0,99863.0,0.14830853]
[1733670130523,0.3608,99864.0,99863.0,0.21830853]
[1733670132734,0.3628,99864.0,99863.0,0.21830853]
[1733670133133,0.3708,99864.0,99863.0,0.21930853]
[1733670133735,0.3708,99864.0,99863.0,0.21617871]
[1733670133930,0.3708,99864.0,99863.0,0.21930771]
[1733670136228,0.3708,99864.0,99863.0,0.22697432]
[1733670137047,0.3708,99864.0,99863.0,0.22384532]
[1733670137235,0.3708,99864.0,99863.0,0.22697425]
[1733670137437,0.01,99864.0,99863.0,0.22697425]
[1733670137627,0.3708,99864.0,99863.0,0.22697425]
[1733670138829,0.3708,99864.0,99863.0,0.18194225]
[1733670139036,0.3708,99864.0,99863.0,0.17114671]
[1733670140637,0.415832,99864.0,99863.0,0.17114671]
[1733670140835,0.415832,99864.0,99863.0,0.071]
[1733670141135,0.045032,99863.0,99850.0,0.01771602]
[1733670141337,0.045032,99863.0,99837.0,0.23902085]
[1733670141338,0.3608,99851.0,99845.0,0.05504]
[1733670141537,0.090076,99849.0,99834.0,0.23902085]
[1733670141747,0.2807,99834.0,99817.0,0.23904612]
[1733670141946,0.045055,99813.0,99808.0,0.045057]
[1733670142152,0.3608,99809.0,99808.0,0.045057]
[1733670142345,0.21052158,99809.0,99808.0,0.045057]
[1733670142737,0.21052158,99809.0,99801.0,0.00772663]
[1733670142935,0.21052158,99809.0,99800.0,0.3608]
[1733670143236,0.045051,99821.0,99815.0,0.045054]
[1733670143640,0.045051,99821.0,99808.0,0.3608]
[1733670143641,0.6415,99830.0,99818.0,0.045052]
[1733670143846,0.3608,99830.0,99818.0,0.045052]
[1733670144031,0.3608,99830.0,99816.0,0.10019538]
[1733670144032,0.045048,99827.0,99817.0,0.0573]
[1733670144235,0.045048,99827.0,99819.0,0.10017631]
[1733670144441,0.045048,99827.0,99817.0,0.0573]
[1733670144442,0.045048,99827.0,99822.0,0.04505]
[1733670145032,0.045048,99827.0,99823.0,0.00313032]
[1733670145241,0.045048,99827.0,99824.0,0.00313032]
[1733670145436,0.045048,99827.0,99825.0,0.00313032]
[1733670145636,0.046048,99827.0,99826.0,0.00313032]
[1733670146840,0.045048,99827.0,99826.0,0.00613032]
[1733670147237,0.045048,99827.0,99826.0,0.00613021]
[1733670147832,0.045048,99827.0,99826.0,0.00813021]
[1733670149839,0.045048,99827.0,99826.0,0.005]
[1733670150040,0.045048,99827.0,99826.0,0.004]
[1733670150843,0.045048,99827.0,99826.0,0.003]
[1733670154145,0.045048,99827.0,99826.0,0.002]
[1733670154443,0.045048,99827.0,99826.0,0.003]
[1733670159656,0.045048,99827.0,99826.0,0.002]
[1733670160043,0.045048,99827.0,99826.0,0.001]
[1733670161041,0.046048,99827.0,99826.0,0.001]
[1733670162047,0.046048,99827.0,99813.0,0.045054]
[1733670162048,0.045054,99814.0,99813.0,0.045054]
[1733670162247,0.405854,99814.0,99813.0,0.045054]
[1733670163351,0.405854,99814.0,99813.0,0.047054]
[1733670163752,0.405854,99814.0,99813.0,0.048054]
[1733670164550,0.405854,99814.0,99813.0,0.003]
[1733670168561,0.405854,99814.0,99813.0,0.14824184]
[1733670169055,0.405854,99814.0,99813.0,0.10631754]
[1733670171854,0.405854,99814.0,99813.0,0.10318684]
[1733670172057,0.08889084,99814.0,99813.0,0.10631763]
[1733670172264,0.01,99818.0,99817.0,0.045053]
[1733670172456,0.01,99818.0,99817.0,0.37901703]
[1733670172857,0.01,99818.0,99817.0,0.83869452]
[1733670173055,0.01,99818.0,99817.0,0.85476638]
[1733670173256,0.01,99818.0,99817.0,0.47920387]
[1733670173753,0.01,99818.0,99817.0,0.495266]
[1733670174353,0.01,99818.0,99817.0,0.16543276]
[1733670174553,0.01,99818.0,99817.0,0.49519966]
[1733670174857,0.01,99819.0,99817.0,0.49519966]
[1733670174858,0.01,99819.0,99818.0,0.045052]
[1733670175063,0.01,99824.0,99819.0,0.045052]
[1733670175265,0.045048,99828.0,99823.0,0.3608]
[1733670175450,0.045048,99828.0,99823.0,0.66052094]
[1733670176059,0.001,99824.0,99823.0,0.66052094]
[1733670176461,0.001,99824.0,99823.0,0.76069574]
[1733670176765,0.001,99824.0,99823.0,0.4629748]
[1733670177660,0.045048,99828.0,99823.0,0.4629748]
[1733670177863,0.046048,99828.0,99823.0,0.4679748]
[1733670178167,0.04505,99823.0,99820.0,0.29972094]
[1733670178380,0.04505,99823.0,99793.0,0.35949065]
[1733670178381,0.045063,99794.0,99793.0,0.35949065]
[1733670178571,0.405863,99794.0,99793.0,0.69162811]
[1733670178873,0.405863,99794.0,99793.0,0.33191756]
[1733670179163,0.3608,99794.0,99793.0,0.00313143]
[1733670179363,0.405863,99794.0,99793.0,0.00313143]
[1733670179667,0.405863,99794.0,99793.0,0.31947557]
[1733670179862,0.405863,99794.0,99793.0,0.00313143]
[1733670180759,0.405863,99794.0,99793.0,0.00713143]
[1733670180961,0.01,99799.0,99793.0,0.00713143]
[1733670181160,0.01,99799.0,99794.0,0.06013143]
[1733670181366,0.01,99799.0,99797.0,0.045062]
[1733670181660,0.01,99799.0,99798.0,0.00313143]
[1733670181870,0.3608,99802.0,99798.0,0.00313143]
[1733670182171,0.3608,99802.0,99797.0,0.045062]
[1733670182370,0.40586,99802.0,99798.0,0.00313106]
[1733670182559,0.045061,99800.0,99799.0,0.00313106]
[1733670183765,0.046061,99800.0,99799.0,0.00313106]
[1733670184065,0.046061,99800.0,99799.0,0.00613106]
[1733670184668,0.046061,99800.0,99799.0,0.00513106]
[1733670187565,0.046061,99800.0,99799.0,0.002]
[1733670187757,0.406861,99800.0,99799.0,0.002]
[1733670189165,0.416861,99800.0,99799.0,0.002]
[1733670189963,0.416861,99800.0,99773.0,0.1733]
[1733670189964,0.01,99774.0,99761.0,0.35971055]
[1733670190172,0.045085,99745.0,99733.0,0.04509]
[1733670190363,0.6415,99762.0,99734.0,0.32337765]
[1733670190364,0.045089,99736.0,99734.0,0.32337765]
[1733670190570,0.04509,99735.0,99719.0,0.13209445]
[1733670190760,0.04509,99735.0,99727.0,0.045093]
[1733670190961,0.01,99732.0,99728.0,0.01677606]
[1733670191160,0.3608,99736.0,99729.0,0.01677606]
[1733670191161,0.325792,99731.0,99729.0,0.01677606]
[1733670191362,0.325792,99731.0,99730.0,0.003133]
[1733670191563,0.2807,99731.0,99730.0,0.00563036]
[1733670191765,0.2807,99731.0,99715.0,0.045098]
[1733670191766,0.045094,99726.0,99715.0,0.045098]
[1733670192068,0.045094,99726.0,99709.0,0.3608]
[1733670192069,0.32946639,99723.0,99716.0,0.02260758]
[1733670192265,0.006867,99736.0,99726.0,0.045093]
[1733670192576,0.006867,99736.0,99727.0,0.0568]
[1733670193073,0.006867,99736.0,99728.0,0.3608]
[1733670193465,0.04509,99735.0,99728.0,0.3608]
[1733670193769,0.04509,99735.0,99727.0,0.0598]
[1733670194371,0.04509,99735.0,99727.0,0.0648]
[1733670194567,0.007867,99736.0,99728.0,0.003]
[1733670194771,0.045091,99734.0,99728.0,0.003]
[1733670195278,0.045092,99730.0,99728.0,0.003]
[1733670196873,0.045093,99728.0,99727.0,0.009]
[1733670197172,0.045093,99728.0,99727.0,0.004]
[1733670197774,0.001,99730.0,99718.0,0.05310062]
[1733670197775,0.045095,99725.0,99718.0,0.05310062]
[1733670198072,0.3608,99723.0,99718.0,0.05310062]
[1733670198664,0.3608,99723.0,99707.0,0.4834]
[1733670198980,0.045101,99711.0,99707.0,0.528502]
[1733670199176,0.045101,99711.0,99708.0,0.00560483]
[1733670199472,0.045101,99711.0,99709.0,0.00560483]
[1733670199683,0.045101,99711.0,99710.0,0.00560483]
[1733670200469,0.046101,99711.0,99710.0,0.00560483]
[1733670201067,0.046101,99711.0,99710.0,0.01060483]
[1733670201484,0.047101,99711.0,99710.0,0.01760483]
[1733670201871,0.047101,99711.0,99710.0,0.012]
[1733670203480,0.046101,99711.0,99710.0,0.01]
[1733670203679,0.045101,99711.0,99710.0,0.005]
[1733670203974,0.046101,99711.0,99710.0,0.01]
[1733670204780,0.046101,99711.0,99710.0,0.005]
[1733670205075,0.046101,99711.0,99710.0,0.009]
[1733670205974,0.045105,99701.0,99684.0,0.3608]
[1733670206184,0.045105,99701.0,99685.0,0.045112]
[1733670206185,0.686605,99701.0,99685.0,0.045112]
[1733670206380,0.686605,99701.0,99684.0,0.3608]
[1733670206974,0.986605,99701.0,99700.0,0.096]
[1733670207278,0.986605,99701.0,99700.0,0.099]
[1733670207471,0.987605,99701.0,99700.0,0.104]
[1733670207686,0.04512,99669.0,99666.0,0.3608]
[1733670207891,0.04512,99669.0,99667.0,0.0320969]
[1733670208081,0.04512,99669.0,99668.0,0.0057267]
[1733670208384,0.3618,99701.0,99671.0,0.045119]
[1733670208679,0.3618,99701.0,99668.0,0.12323262]
[1733670208680,0.3618,99701.0,99680.0,0.3608]
[1733670208884,0.3618,99701.0,99694.0,0.045108]
[1733670209077,0.3618,99701.0,99681.0,0.01720553]
[1733670209078,0.045114,99682.0,99681.0,0.01720553]
[1733670209286,0.405914,99682.0,99676.0,0.045116]
[1733670209472,0.405914,99682.0,99680.0,7.099e-05]
[1733670211080,0.405914,99682.0,99680.0,0.00107099]
[1733670211682,0.3608,99682.0,99680.0,0.00107099]
[1733670211870,7.64e-05,99690.0,99680.0,0.00107099]
[1733670212075,7.64e-05,99690.0,99689.0,0.045111]
[1733670212781,7.64e-05,99690.0,99689.0,0.05073909]
[1733670213374,0.0020764,99690.0,99689.0,0.05073909]
[1733670213582,0.0020764,99690.0,99689.0,0.05274746]
[1733670213985,0.01,99695.0,99694.0,0.045108]
[1733670214181,0.3608,99696.0,99694.0,0.045108]
[1733670214388,0.01,99700.0,99699.0,0.045106]
[1733670214575,0.3608,99705.0,99690.0,0.4882]
[1733670214576,0.3708,99705.0,99690.0,0.4882]
[1733670214800,0.045104,99704.0,99691.0,0.00561974]
[1733670214981,0.01,99705.0,99703.0,0.045104]
[1733670215884,8.132e-05,99710.0,99709.0,0.045102]
[1733670216979,8.132e-05,99710.0,99709.0,0.14539334]
[1733670216980,0.00308132,99710.0,99709.0,0.14539334]
[1733670217179,0.045094,99725.0,99716.0,0.045098]
[1733670217378,0.3608,99746.0,99717.0,0.4238]
[1733670217379,0.045095,99724.0,99717.0,0.4238]
[1733670217793,0.045095,99723.0,99717.0,0.4238]
[1733670217983,0.045096,99721.0,99717.0,0.4238]
[1733670218879,0.045097,99719.0,99717.0,0.4238]
[1733670219083,0.045097,99719.0,99717.0,0.063]
[1733670220183,0.048097,99719.0,99718.0,0.0662]
[1733670220387,0.054097,99719.0,99718.0,0.0662]
[1733670220578,0.054097,99719.0,99718.0,0.08293625]
[1733670220783,0.054097,99719.0,99718.0,0.12803325]
[1733670220784,0.009,99719.0,99718.0,0.12803325]
[1733670221582,0.009,99719.0,99718.0,0.08293625]
[1733670221785,0.003,99719.0,99718.0,0.08293625]
[1733670221990,0.009,99719.0,99718.0,0.08293625]
[1733670223182,0.009,99719.0,99714.0,0.3608]
[1733670223381,0.3608,99715.0,99696.0,0.35663767]
[1733670223581,0.3608,99715.0,99702.0,0.29713167]
[1733670223891,0.3608,99715.0,99705.0,0.10028229]
[1733670224090,0.3608,99715.0,99701.0,0.00796421]
[1733670224394,0.3608,99702.0,99693.0,0.29713167]
[1733670224603,0.045111,99688.0,99682.0,0.29713167]
[1733670224783,0.30439112,99683.0,99681.0,0.10029084]
[1733670224983,0.30439112,99683.0,99680.0,0.01987142]
[1733670225186,0.27304667,99683.0,99680.0,0.01987142]
[1733670225383,0.27304667,99683.0,99681.0,0.11155992]
[1733670226587,0.27404667,99683.0,99682.0,0.1316]
[1733670227191,0.27404667,99683.0,99682.0,0.23191901]
[1733670227781,0.27404667,99683.0,99681.0,0.01326908]
[1733670227985,0.045114,99682.0,99681.0,0.01326908]
[1733670228596,0.045114,99682.0,99681.0,0.01126908]
[1733670229488,0.045114,99682.0,99680.0,7.099e-05]
[1733670230890,0.198,99681.0,99680.0,7.099e-05]
[1733670231291,0.498,99681.0,99680.0,7.099e-05]
[1733670231699,0.823814,99681.0,99680.0,0.001]
[1733670231893,0.045127,99653.0,99652.0,0.045127]
[1733670232192,0.045127,99653.0,99649.0,0.10032052]
[1733670232193,0.3608,99653.0,99649.0,0.10032052]
[1733670232491,0.045128,99650.0,99649.0,0.045129]
[1733670232699,0.045128,99650.0,99649.0,0.05080859]
[1733670233293,0.3608,99653.0,99650.0,0.00010917]
[1733670233494,0.3608,99653.0,99651.0,0.06789579]
[1733670233690,0.3608,99653.0,99652.0,0.02276779]
[1733670234093,0.3608,99653.0,99652.0,0.11743993]
[1733670234400,0.3618,99653.0,99652.0,0.11743993]
[1733670234700,0.3618,99653.0,99652.0,0.0673593]
[1733670235893,0.3618,99653.0,99652.0,0.0693593]
[1733670237908,0.3618,99653.0,99652.0,0.01927867]
[1733670238196,0.001,99653.0,99652.0,0.01927867]
[1733670238798,0.01,99656.0,99655.0,0.045126]
[1733670239394,0.01,99656.0,99655.0,0.14547471]
[1733670239601,0.2807,99655.0,99650.0,1.7e-07]
[1733670239817,0.405928,99651.0,99650.0,1.7e-07]
[1733670240799,0.405928,99651.0,99612.0,0.06946254]
[1733670240998,0.3608,99620.0,99618.0,0.045143]
[1733670241207,0.02,99624.0,99619.0,0.00574826]
[1733670241394,0.045143,99618.0,99612.0,0.3608]
[1733670241594,0.045145,99614.0,99612.0,0.3608]
[1733670241805,0.045145,99614.0,99613.0,0.00570386]
[1733670242003,0.02,99618.0,99613.0,0.00570386]
[1733670242305,0.02,99618.0,99612.0,0.3608]
[1733670242500,0.02,99618.0,99613.0,0.00313676]
[1733670242801,0.02,99618.0,99614.0,0.00884569]
[1733670242995,0.02,99618.0,99615.0,0.00313676]
[1733670243190,0.02,99618.0,99616.0,0.00313676]
[1733670243397,0.065143,99618.0,99617.0,0.00313676]
[1733670243902,0.065143,99618.0,99601.0,0.04515]
[1733670243903,0.045148,99607.0,99601.0,0.04515]
[1733670244107,0.045148,99607.0,99600.0,0.1082867]
[1733670244108,0.02,99609.0,99603.0,0.0692]
[1733670244398,0.02,99614.0,99613.0,0.005]
[1733670244593,0.3608,99616.0,99613.0,0.005]
[1733670245200,0.3608,99616.0,99612.0,0.001]
[1733670245898,0.3618,99616.0,99613.0,0.001]
[1733670246100,0.3628,99616.0,99613.0,0.006]
[1733670246805,0.002,99616.0,99614.0,0.045144]
[1733670247003,0.002,99616.0,99613.0,0.36086337]
[1733670247303,0.045144,99615.0,99613.0,0.36086337]
[1733670247801,0.045144,99615.0,99613.0,0.3608]
[1733670248616,0.002,99616.0,99613.0,0.3608]
[1733670248617,0.002,99616.0,99614.0,0.045145]
[1733670248817,0.001,99615.0,99614.0,0.045145]
[1733670249196,0.002,99615.0,99614.0,0.045145]
[1733670249403,0.002,99615.0,99614.0,0.14553249]
[1733670249701,0.001,99615.0,99614.0,0.14553249]
[1733670249904,0.001,99615.0,99614.0,0.09545186]
[1733670250608,0.002,99616.0,99614.0,0.09545186]
[1733670250808,0.002,99616.0,99614.0,0.14059686]
[1733670251300,0.001,99616.0,99614.0,0.14059686]
[1733670251499,0.001,99615.0,99614.0,0.14059686]
[1733670251901,0.002,99620.0,99614.0,0.14059686]
[1733670252115,0.045128,99650.0,99626.0,0.045139]
[1733670252410,0.045128,99650.0,99649.0,0.3608]
[1733670252900,0.3608,99659.0,99649.0,0.31071937]
[1733670253306,0.001,99650.0,99649.0,0.31071937]
[1733670253806,0.3608,99659.0,99649.0,0.31071937]
[1733670254010,0.045128,99651.0,99649.0,0.31071937]
[1733670254399,0.3608,99659.0,99649.0,0.31071937]
[1733670254697,0.045126,99656.0,99652.0,0.045127]
[1733670255096,0.045126,99656.0,99653.0,0.045127]
[1733670255299,0.045126,99656.0,99649.0,0.31071937]
[1733670255507,0.002,99651.0,99650.0,0.10035122]
[1733670255807,0.002,99651.0,99649.0,0.35584737]
[1733670255996,0.002,99651.0,99649.0,0.30576674]
[1733670256200,0.002,99651.0,99650.0,0.10034669]
[1733670257305,0.002,99659.0,99650.0,0.10034669]
[1733670257500,0.001,99656.0,99650.0,0.10034669]
[1733670257807,0.001,99656.0,99655.0,0.045126]
[1733670258210,0.002,99659.0,99656.0,0.045125]
[1733670258502,0.045123,99662.0,99656.0,0.045125]
[1733670258802,0.045123,99662.0,99659.0,0.3608]
[1733670259005,0.045123,99662.0,99659.0,0.31071937]
[1733670259625,0.045118,99673.0,99659.0,0.41106103]
[1733670259808,0.045118,99672.0,99659.0,0.41106103]
[1733670260103,0.00110123,99660.0,99659.0,0.41106103]
[1733670260312,0.00110123,99660.0,99659.0,0.41961433]
[1733670261506,0.00310123,99660.0,99659.0,0.41961433]
[1733670261703,0.405914,99682.0,99659.0,0.41961433]
[1733670261908,0.405914,99682.0,99674.0,0.045117]
[1733670262217,0.405914,99682.0,99669.0,0.3608]
[1733670262218,0.405914,99682.0,99669.0,0.35583637]
[1733670262608,0.405914,99682.0,99670.0,0.10032304]
[1733670262908,0.405914,99682.0,99674.0,0.045117]
[1733670263207,0.405914,99682.0,99674.0,0.046117]
[1733670263208,0.406914,99682.0,99674.0,0.046117]
[1733670263409,0.406914,99682.0,99674.0,0.001]
[1733670263624,0.406914,99682.0,99675.0,0.045117]
[1733670264309,0.046114,99682.0,99676.0,0.045116]
[1733670265112,0.046114,99682.0,99669.0,0.36340135]
[1733670265410,0.046114,99682.0,99677.0,0.3608]
[1733670266000,0.001,99682.0,99678.0,0.045116]
[1733670266402,0.001,99682.0,99680.0,0.045114]
[1733670266602,0.001,99682.0,99680.0,0.045115]
[1733670267414,0.001,99682.0,99678.0,0.0704]
[1733670267621,0.046114,99682.0,99677.0,0.3628]
[1733670267916,0.046114,99682.0,99679.0,0.10032002]
[1733670268101,0.046114,99682.0,99677.0,0.35883537]
[1733670268302,0.046114,99682.0,99678.0,0.10132002]
[1733670268708,0.001,99682.0,99678.0,0.10132002]
[1733670268909,0.001,99682.0,99679.0,0.045115]
[1733670269307,0.001,99682.0,99679.0,0.14543653]
[1733670269512,0.045111,99689.0,99679.0,0.14543653]
[1733670269712,0.001,99682.0,99679.0,0.14543653]
[1733670270209,0.001,99682.0,99681.0,0.045114]
[1733670271103,0.001,99682.0,99677.0,0.31898585]
[1733670271308,0.001,99682.0,99679.0,0.001]
[1733670271615,0.001,99682.0,99681.0,0.001]
[1733670271811,0.001,99682.0,99681.0,0.046114]
[1733670272017,0.001,99682.0,99681.0,0.047114]
[1733670272415,0.001,99682.0,99681.0,0.001]
[1733670272615,0.001,99682.0,99679.0,0.003]
[1733670273015,0.001,99682.0,99680.0,0.10031951]
[1733670273918,0.001,99682.0,99680.0,0.14543351]
[1733670274122,0.001,99682.0,99681.0,0.001]
[1733670274321,0.001,99682.0,99680.0,0.09635288]
[1733670274713,0.001,99682.0,99681.0,0.001]
[1733670274913,0.001,99682.0,99681.0,0.046114]
[1733670275621,0.001,99682.0,99681.0,0.14643351]
[1733670277121,0.001,99682.0,99681.0,0.14743351]
[1733670277317,0.001,99682.0,99681.0,0.09735288]
[1733670277617,0.001,99682.0,99681.0,0.14246688]
[1733670278419,0.001,99682.0,99681.0,0.14146688]
[1733670278630,0.001,99682.0,99681.0,0.14246688]
[1733670278920,0.00012274,99690.0,99689.0,0.045111]
[1733670279113,0.00012274,99690.0,99689.0,0.405911]
[1733670279625,0.00012274,99690.0,99689.0,0.50623051]
[1733670280314,0.00012274,99690.0,99689.0,0.45614988]
[1733670281615,0.00112274,99690.0,99689.0,0.45614988]
[1733670281814,0.00112274,99690.0,99689.0,0.50126088]
[1733670283215,0.00012274,99690.0,99689.0,0.50126088]
[1733670283515,0.00112274,99690.0,99689.0,0.45949897]
[1733670284025,0.005,99706.0,99705.0,0.045103]
[1733670284221,0.045098,99716.0,99701.0,0.045105]
[1733670284423,0.045098,99716.0,99700.0,0.01]
[1733670284619,0.045098,99716.0,99702.0,0.10029386]
[1733670284918,0.045098,99716.0,99700.0,0.01]
[1733670284919,0.045096,99721.0,99700.0,0.01]
[1733670285128,0.045096,99721.0,99701.0,0.10029386]
[1733670285321,0.045096,99721.0,99714.0,0.045099]
[1733670285923,0.045096,99721.0,99711.0,0.01]
[1733670286118,0.045096,99721.0,99715.0,0.045099]
[1733670286119,0.3638,99718.0,99715.0,0.045099]
[1733670286314,0.3638,99718.0,99706.0,0.32071937]
[1733670286522,0.3638,99718.0,99717.0,0.045098]
[1733670287824,0.3688,99718.0,99717.0,0.045098]
[1733670288327,0.3748,99718.0,99717.0,0.045098]
[1733670288531,0.3748,99718.0,99717.0,0.00856233]
[1733670288736,0.3748,99718.0,99703.0,0.01]
[1733670288924,0.3748,99718.0,99698.0,0.60041928]
[1733670288925,0.3748,99718.0,99700.0,0.04521676]
[1733670289129,0.3748,99718.0,99704.0,0.1002833]
[1733670289324,0.045102,99709.0,99704.0,0.05020267]
[1733670289522,0.045102,99709.0,99703.0,0.045104]
[1733670289523,0.045102,99708.0,99703.0,0.045104]
[1733670289728,0.045102,99709.0,99703.0,0.045104]
[1733670289926,0.3758,99718.0,99704.0,0.10028983]
[1733670289927,0.045102,99708.0,99704.0,0.10028983]
[1733670290127,0.0451,99714.0,99708.0,0.045102]
[1733670290331,0.3698,99718.0,99708.0,0.045102]
[1733670290332,0.045101,99711.0,99708.0,0.045102]